Cogmind - Beta 11.1 @@@ ROGUE MODE // 2022.04.23 @ 00:49:46 Player: Olga Result: Destroyed by X-62 Marksman with Pulse Rifle Performance ------------- Evolutions (3) 1500 Regions Visited (5) 1000 Robots Destroyed (10) 50 Value Destroyed (219) 219 Prototype IDs (0) 0 Alien Tech Used (0) 0 Bonus (500) 500 TOTAL SCORE: 3269 Bonus ------- Entered DSFs 500 Cogmind --------- Core Integrity 0/700 Matter 172/300 Energy 6/250 System Corruption 0% Temperature Cool (9) Movement Treading (160) Location -7/DSF Parts ------- > --- POWER (1) -------- Ion Engine > --- PROPULSION (4) --- Medium Treads Medium Treads > --- UTILITY (6) ------ Visual Processing Unit Improved Shield Generator > --- WEAPON (2) ------- Medium Laser > --- INVENTORY (5) ---- (None) Peak State ------------ > --- POWER ------------ Light Deuterium Engine > --- PROPULSION ------- Gravmag System Gravmag System Gravmag System Gravmag System > --- UTILITY ---------- Structural Scanner Visual Processing Unit Improved Signal Interpreter Hacking Suite > --- WEAPON ----------- Chainsword > --- INVENTORY -------- Airjet Airjet Gravmag System Katana [Rating: 33] Favorites ----------- Power Light Ion Engine Engine Light Ion Engine Propulsion Hover Unit Treads Medium Treads Leg Aluminum Leg Hover Unit Hover Unit Utility Structural Scanner Device Structural Scanner Storage Small Storage Unit Processor Visual Processing Unit Hackware Hacking Suite Weapon Light Assault Rifle Energy Gun Medium Laser Ballistic Gun Light Assault Rifle Slashing Weapon Katana Build | -11 -10 -9 -8 -7 -7 ------- Run | Scr Mat Mat Mat Fac DSF Slots Evolved 6 | . . 2 2 2 . Power . | . . . . . . Propulsion 2 | . . 1 1 . . Utility 4 | . . 1 1 2 . Weapon . | . . . . . . Parts Attached 35 | . 4 3 7 . 21 Power 2 | . . . 1 . 1 Engine 2 | . . . 1 . 1 Core . | . . . . . . Reactor . | . . . . . . Propulsion 19 | . 2 2 1 . 14 Treads 4 | . . . . . 4 Leg . | . . . . . . Wheel . | . . . . . . Hover 15 | . 2 2 1 . 10 Flight . | . . . . . . Utility 6 | . 1 . 4 . 1 Device 3 | . 1 . 1 . 1 Storage . | . . . . . . Processor 2 | . . . 2 . . Hackware 1 | . . . 1 . . Protection . | . . . . . . Artifact . | . . . . . . Weapon 8 | . 1 1 1 . 5 Energy Gun 1 | . . . . . 1 Energy Cannon . | . . . . . . Ballistic Gun 3 | . 1 1 . . 1 Ballistic Cannon . | . . . . . . Launcher . | . . . . . . Special Weapon . | . . . . . . Impact Weapon . | . . . . . . Slashing Weapon 4 | . . . 1 . 3 Piercing Weapon . | . . . . . . Special Melee Weapon . | . . . . . . Unidentified Prototypes . | . . . . . . Parts Lost 23 | . . 2 4 . 17 Power 1 | . . . . . 1 Propulsion 14 | . . 1 3 . 10 Utility 4 | . . . 1 . 3 Weapon 4 | . . 1 . . 3 Highest Loss Streak 14 | . . 1 3 . 14 To Critical Strikes . | . . . . . . Average Slot Usage (%) 71 | . 85 87 73 46 50 Engine 9 | . 14 11 9 7 4 Treads 3 | . . . . . 10 Leg 3 | . 14 . . . . Hover 17 | . 11 33 20 7 9 Device 7 | . 1 11 12 7 4 Storage 6 | . 14 11 6 . . Processor 3 | . . . . 15 10 Hackware 3 | . . . 9 7 3 Energy Gun 2 | . 8 . . . . Ballistic Gun 10 | . 19 21 9 . . Slashing Weapon 2 | . . . 6 . 3 Naked Turns . | . . . . . . Heaviest Build 13 | 11 11 11 13 6 12 Greatest Support 112 | 20 20 19 19 7 112 Greatest Overweight (x) 1 | . . . 1 . 1 Average Overweight (x) . | . . . . . . Largest Inventory Capacity 8 | 8 8 8 8 5 5 Average Capacity 6 | 8 8 8 7 5 5 Most Carried 8 | 6 8 7 6 5 5 Average Carried 4 | 6 6 5 5 5 1 Final Capacity 8 | 8 8 8 5 5 5 Final Carried 7 | 6 7 5 5 5 . Class Distribution -------------------- 100% | Mutant Dominant Class ---------------- Mutant | -10/Materials Mutant | -9/Materials Mutant | -8/Materials Mutant | -7/Factory Mutant | -7/DSF Resources | -11 -10 -9 -8 -7 -7 ----------- Run | Scr Mat Mat Mat Fac DSF Matter Collected 331 | 183 59 . 82 . 7 Remotely . | . . . . . . Salvage Created 242 | . 117 . 87 . 38 Parts 22 | . 13 . 8 . 1 Haulers Intercepted . | . . . . . . Recyclers Shooed . | . . . . . . Parts Field Recycled . | . . . . . . Retrieved Matter . | . . . . . . Parts Self-Destructed . | . . . . . . Prevented . | . . . . . . Kills | -11 -10 -9 -8 -7 -7 ------- Run | Scr Mat Mat Mat Fac DSF Combat Hostiles Destroyed 8 | . 6 . 1 . 1 Melee 1 | . . . 1 . . Guns 7 | . 6 . . . 1 Classes Destroyed 3 | . 3 . . . . Watcher 2 | . 1 . 1 . . Swarmer 5 | . 5 . . . . Grunt 3 | . 1 . 1 . 1 Best Kill Streak 4 | . 4 . 1 . 1 Combat Bots Only 3 | . 3 . 1 . 1 Max Kills in Single Turn 1 | . 1 . 1 . 1 Gunslinging . | . . . . . . Exploded . | . . . . . . Melee 1 | . . . 1 . . Uniques/NPCs Destroyed . | . . . . . . Combat | -11 -10 -9 -8 -7 -7 -------- Run | Scr Mat Mat Mat Fac DSF Damage Taken 2652 | . 202 223 233 . 1994 Core 892 | . 63 62 55 . 712 Absorbed by Shields 23 | . . . . . 23 Core Remaining (%) 87 | 100 74 84 90 . . Volleys Fired 21 | . 12 1 . . 8 Largest 2 | . 2 2 . . 2 Hottest 70 | . 70 40 . . 70 Shots Fired 39 | . 24 2 . . 13 Gun 39 | . 24 2 . . 13 Cannon . | . . . . . . Launcher . | . . . . . . Special . | . . . . . . Kinetic 19 | . 12 2 . . 5 Thermal 20 | . 12 . . . 8 Explosive . | . . . . . . Electromagnetic . | . . . . . . Robot Hit Streak 16 | . 10 . . . 16 Robot Miss Streak 2 | . 2 . . . 1 Penetration Max . | . . . . . . Secondary Targets . | . . . . . . Shots Hit Robots 45 | . 16 . 2 . 27 Core Hits 15 | . 9 . 2 . 4 Critical Kills . | . . . . . . Critical Parts Destroyed . | . . . . . . Critical Strikes . | . . . . . . Melee Attacks 20 | . . . 2 . 18 Impact . | . . . . . . Slashing 20 | . . . 2 . 18 Piercing . | . . . . . . Sneak Attacks . | . . . . . . Combat Hostiles . | . . . . . . Follow-up Attacks . | . . . . . . Damage Inflicted 652 | . 189 . 73 . 390 Guns 314 | . 189 . . . 125 Cannons . | . . . . . . Explosions . | . . . . . . Melee 338 | . . . 73 . 265 Ramming . | . . . . . . Kinetic 114 | . 74 . . . 40 Thermal 200 | . 115 . . . 85 Explosive . | . . . . . . Electromagnetic . | . . . . . . Impact . | . . . . . . Slashing 338 | . . . 73 . 265 Piercing . | . . . . . . Highest Corruption 3 | . . . 3 . . Average Corruption 2 | . . . 2 . . Corruption Purged . | . . . . . . Corruption Blocked . | . . . . . . Effects 1 | . . . 1 . . Message Errors 1 | . . . 1 . . Overload Shots . | . . . . . . Overflow Damage . | . . . . . . Projectiles . | . . . . . . Explosions . | . . . . . . Melee . | . . . . . . Knockbacks . | . . . . . . Impact . | . . . . . . Kinetic . | . . . . . . Secondary . | . . . . . . Self-Inflicted Damage . | . . . . . . Shots . | . . . . . . Rammed . | . . . . . . Targets Rammed . | . . . . . . Kicked . | . . . . . . Crushed . | . . . . . . Highest Temperature 144 | . 144 . 4 . 1 Average Temperature 60 | . 62 . 4 . 1 Received Heat Transfer 837 | . 30 87 90 . 630 Siege Activations . | . . . . . . Robots Corrupted . | . . . . . . Combat Hostiles . | . . . . . . Parts Fried . | . . . . . . Impact Corruptions . | . . . . . . Robots Melted . | . . . . . . Combat Hostiles . | . . . . . . Parts Melted 1 | . 1 . . . . Heat Transferred 592 | . 333 . . . 259 Parts Sabotaged . | . . . . . . Parts Stolen . | . . . . . . Parts Stripped . | . . . . . . Power Chain Reactions . | . . . . . . Missiles Intercepted . | . . . . . . Alert | -11 -10 -9 -8 -7 -7 ------- Run | Scr Mat Mat Mat Fac DSF Peak Influence 215 | . 215 205 87 35 24 Initial 90 | . . 90 86 35 24 Average 69 | . 137 137 45 35 6 Maximum Alert Level 1 | . 1 1 . . . Low Security (%) 96 | 100 90 91 100 100 100 Level 1 3 | . 9 8 . . . Level 2 . | . . . . . . Level 3 . | . . . . . . Level 4 . | . . . . . . Level 5 . | . . . . . . High Security . | . . . . . . Max Security . | . . . . . . Squads Dispatched 6 | . 2 1 1 . 2 Investigation . | . . . . . . Extermination . | . . . . . . Reinforcement 6 | . 2 1 1 . 2 Assault . | . . . . . . Garrison . | . . . . . . Intercept . | . . . . . . Searches Triggered . | . . . . . . Construction Impeded . | . . . . . . Haulers Reinforced . | . . . . . . Active Scanning Responses . | . . . . . . Cargo Convoy Interrupts . | . . . . . . Stealth | -11 -10 -9 -8 -7 -7 --------- Run | Scr Mat Mat Mat Fac DSF Distress Signals 4 | . 1 1 2 . . Communications Jammed . | . . . . . . Distress Signals . | . . . . . . Times Spotted 44 | . 11 14 13 . 6 Peak Tracking Total 10 | . 4 8 10 . 5 Tactical Retreats 3 | . . 2 1 . . Traps | -11 -10 -9 -8 -7 -7 ------- Run | Scr Mat Mat Mat Fac DSF Traps Triggered 5 | . . . 3 . 2 Indirectly . | . . . . . . Trap Hack Attempts . | . . . . . . Triggered . | . . . . . . Disarmed . | . . . . . . Reprogrammed . | . . . . . . Reused . | . . . . . . Traps Extracted . | . . . . . . Installed . | . . . . . . Triggered . | . . . . . . Machines | -11 -10 -9 -8 -7 -7 ---------- Run | Scr Mat Mat Mat Fac DSF Machines Disabled . | . . . . . . Max in Single Turn . | . . . . . . Garrison Access 1 | . . . 1 . . Machines Sabotaged . | . . . . . . Garrisons Compromised . | . . . . . . Overloaded Fab Kills . | . . . . . . Hacking | -11 -10 -9 -8 -7 -7 --------- Run | Scr Mat Mat Mat Fac DSF Machines Accessed 6 | . 1 2 2 1 . Terminals 5 | . 1 2 1 1 . Fabricators . | . . . . . . Repair Stations . | . . . . . . Recycling Units . | . . . . . . Scanalyzers . | . . . . . . Garrison Access 1 | . . . 1 . . Total Hacks 12 | . 1 6 4 1 . Successful 5 | . 1 1 2 1 . Failed 7 | . . 5 2 . . Catastrophic 2 | . . 1 1 . . Database Lockouts . | . . . . . . Manual 5 | . 1 1 3 . . Terminals 11 | . 1 6 3 1 . Fabricators . | . . . . . . Repair Stations . | . . . . . . Recycling Units . | . . . . . . Scanalyzers . | . . . . . . Garrison Access 1 | . . . 1 . . Terminal Hacks 4 | . 1 1 1 1 . Open DSF 1 | . . . . 1 . Branch Access Points 1 | . 1 . . . . Unreport Threat 1 | . . . 1 . . Zone Layout 1 | . . 1 . . . Fabricator Hacks . | . . . . . . Repair Station Hacks . | . . . . . . Recycling Unit Hacks . | . . . . . . Scanalyzer . | . . . . . . Garrison Access Hacks 1 | . . . 1 . . Seal Access 1 | . . . 1 . . Unauthorized Hacks . | . . . . . . Terminals . | . . . . . . Fabricators . | . . . . . . Repair Stations . | . . . . . . Recycling Units . | . . . . . . Scanalyzers . | . . . . . . Garrison Access . | . . . . . . Data Cores Recovered . | . . . . . . Used . | . . . . . . Hacking Detections 4 | . 1 2 1 . . Full Trace Events . | . . . . . . Feedback Events . | . . . . . . Feedback Blocked . | . . . . . . Robot Schematics Acquired . | . . . . . . Robots Built . | . . . . . . Authchips . | . . . . . . Time . | . . . . . . Total Robot Build Rating . | . . . . . . Part Schematics Acquired . | . . . . . . Parts Built . | . . . . . . Authchips . | . . . . . . Time . | . . . . . . Total Part Build Rating . | . . . . . . Parts Repaired . | . . . . . . Time . | . . . . . . Parts Recycled . | . . . . . . Recycled Matter . | . . . . . . Retrieved Matter . | . . . . . . Retrieved Components . | . . . . . . Parts Scanalyzed . | . . . . . . Part Schematics Acquired . | . . . . . . Parts Damaged . | . . . . . . Bothacking | -11 -10 -9 -8 -7 -7 ------------ Run | Scr Mat Mat Mat Fac DSF Used RIF Installer . | . . . . . . Robots Hacked . | . . . . . . Non-combat . | . . . . . . Combat . | . . . . . . Robot Hacks Applied . | . . . . . . Relay Couplers Released . | . . . . . . Fabnet Peak Effective % . | . . . . . . Robots Rewired . | . . . . . . Allies Hacked . | . . . . . . Hacks Repelled . | . . . . . . Allies | -11 -10 -9 -8 -7 -7 -------- Run | Scr Mat Mat Mat Fac DSF Total Allies . | . . . . . . Largest Group . | . . . . . . Highest-Rated Group . | . . . . . . Highest-Rated Ally . | . . . . . . Total Orders . | . . . . . . Ally Attacks . | . . . . . . Total Damage . | . . . . . . Kills . | . . . . . . Allies Corrupted . | . . . . . . Allies Melted . | . . . . . . Intel | -11 -10 -9 -8 -7 -7 ------- Run | Scr Mat Mat Mat Fac DSF Robot Analysis Total . | . . . . . . Derelict Logs Recovered . | . . . . . . Drone Launches . | . . . . . . Drone Recoveries . | . . . . . . Exploration | -11 -10 -9 -8 -7 -7 ------------- Run | Scr Mat Mat Mat Fac DSF Turns Passed 676 | 3 147 119 196 6 205 Spaces Moved 770 | 3 130 213 311 10 103 Core 19 | . . . . . 19 Treads 23 | . . . . . 23 Legs 41 | 3 38 . . . . Wheels . | . . . . . . Hover 687 | . 92 213 311 10 61 Flight . | . . . . . . Fastest Speed 48 | 120 56 52 52 60 48 Average Speed 61 | 120 74 52 55 60 76 Slowest Speed 160 | 120 120 52 120 60 160 Overloaded Moves . | . . . . . . Propulsion Burnouts . | . . . . . . Robots Hopped . | . . . . . . Cave-ins Triggered . | . . . . . . Exploration Rate (%) 27 | 2 32 24 38 1 67 Regions Visited 5 Branch Regions . Pre-discovered Areas . | . . . . . . Known Exits Taken 2 | . . . 1 1 . Unknown Exits Taken 3 | 1 1 1 . . . Scrap Searched . | . . . . . . Spaces Dug . | . . . . . . Terrain Destroyed . | . . . . . . Melee . | . . . . . . Projectile . | . . . . . . AOE . | . . . . . . Terrain Rammed . | . . . . . . Walls Destroyed . | . . . . . . Machines Disabled . | . . . . . . Actions | -11 -10 -9 -8 -7 -7 --------- Run | Scr Mat Mat Mat Fac DSF Total 905 | 2 158 219 329 9 188 Wait 31 | . 5 2 3 . 21 Move 765 | 2 129 212 310 9 103 Hop . | . . . . . . Pick Up 14 | . 5 1 2 . 6 Fast Attach 12 | . . . 4 . 8 Attach 16 | . 3 3 1 . 9 Detach 1 | . . . 1 . . Swap 7 | . 1 . 2 . 4 Drop 12 | . 3 . 4 . 5 Fire 21 | . 12 1 . . 8 Melee 20 | . . . 2 . 18 Ram . | . . . . . . Kick . | . . . . . . Crush . | . . . . . . Escape Stasis 6 | . . . . . 6 Rewire . | . . . . . . Trap . | . . . . . . Miscellaneous . | . . . . . . Route ------- -11/Scrapyard -10/Materials (discovered 3 exits: *Mat / Min x2) -9/Materials -8/Materials -7/Factory -7/DSF History --------- Turn | Location | Event 1 | -11/Scrapyard | Discovered new exit (range 3) 4 | -11/Scrapyard | Entered Materials 20 | -10/Materials | Identified exit to Mines 144 | -10/Materials | Discovered new exit (range 12) 151 | -10/Materials | Entered another Materials area 151 | -9/Materials | Evolved 2 slots: Propulsion x1, Utility x1 265 | -9/Materials | Discovered new exit (range 10) 270 | -9/Materials | Entered another Materials area 270 | -8/Materials | Evolved 2 slots: Propulsion x1, Utility x1 316 | -8/Materials | Build established: Mutant 432 | -8/Materials | Discovered new exit (range 15) 437 | -8/Materials | Lost 3 parts (2n1u) 463 | -8/Materials | Identified exit to Factory 466 | -8/Materials | Entered Factory 466 | -7/Factory | Evolved 2 slots: Utility x2 472 | -7/Factory | Identified exit to DSF 472 | -7/Factory | Entered DSF 529 | -7/DSF | Additional patrols routed to DSF 581 | -7/DSF | Core integrity fell below 50% 595 | -7/DSF | Core integrity fell below 20% 618 | -7/DSF | Lost 14 parts (1p8n3u2w) 677 | -7/DSF | Destroyed by X-62 Marksman with Pulse Rifle Last Messages --------------- 00587_ Knocked back. 00596_ Acquired Med. Treads. 00607_ H-61 Shepherd calls for reinforcements. 00607_ ALERT: Suspicious intruders detected, dispatching Specialist reinforcements to area. 00608_ Critical hit (Burn: +37). 00612_ Acquired Imp. Shield Generator. 00622_ Acquired Ion Engine. 00637_ Critical hit (Burn: +37). 00650_ Acquired Lgt. Assault Rifle. 00653_ Acquired Med. Laser. 00661_ Slug penetrates Wall. 00662_ G-47 Trooper destroyed. 00669_ Penetrated by Slug. 00672_ Lgt. Assault Rifle destroyed. 00672_ Penetrated by Slug. 00672_ Med. Treads destroyed. 00674_ Penetrated by Slug. 00677_ Med. Treads destroyed. 00677_ Slug penetrates X-62 Marksman. Map ----- +----------------------------------------------------+ | ?????????????????????## ##???????????? | | ?????????????????????## ###??????????? | | ????????????????????? ] ==???????????? | | ??????????????????????] ==???????????? | | ????????????????????? ]^^ = ???????????? | | ?????????????????????## ^ ###??????????? | | ????????????????????? ! !!#??????????? | | ??????????????????????! !!#??????????? | | ?????###############? ! !!?####??????? | | ?????################## #######???#??? | | ?????## ## #!!!### ###!!!#? #??? | | ?????## ## #!!!## ##!!!# ## | | ?????## = | | ??????# = % | | ??????# | | ??????#! # ***## ##!!!# #??? | | ??????#!! ## #***## % ### ??#??????? | | ??????### ############ ####?????????? | | ??????##= ##????##!! [[##?????????? | | ??????##= ##????##!!% [[##?????????? | | ??????## ##????##!! % [[##?????????? | | ??????## ####????### %# ##?????????? | | ??????## ==##????## % [[ #?????????? | | ??????## ==######## [[##?????????? | | ?????#### ####;##### [[##?????????? | | ??####### ###=@# ### ####?????????? | | ??#####"" g;xx# ### ####?????????? | | ??##""""" H%! % ##?????????? | | ??##"##"" ^^ % ##?????????? | | ??#####"""""## #===#==!!!//##?????????? | | ?????##"""""#########==!!!/%##?????????? | | ?????#####"###################?????????? | | ?????#####"###?????###########?????????? | | ????????#""##??????????????????????????? | | ????????#####??????????????????????????? | | ????????#####??????????????????????????? | | ???????????????????????????????????????? | | ???????????????????????????????????????? | | ???????????????????????????????????????? | | | | | | | | | | | | | | | | | | | | | | | +----------------------------------------------------+ Best States ------------- Heat Dissipation 34 Energy Generation 14 Energy Capacity 250 Matter Stores 300 Matter Capacity 300 Sight Range 18 Terrain Scan Density 10 Evasion (%) 62 Recoil Reduction 4 Offensive Hacking 10 Item Schematics ----------------- None Robot Schematics ------------------ None Fabricated ------------ Nothing Alien Tech Used ----------------- None Achievements -------------- None Challenges ------------ None Game ------ Seed SystemTrapRedirector Manual? 0 Play Time 00:17:30 Cumulative 90.6 hours Start 2022.04.23 @ 00:35:42 End 2022.04.23 @ 00:49:46 Sessions 1 Manual Loads 0 Difficulty Rogue Special Mode None Game No. 118 Rogue 118 Adventurer 0 Explorer 0 Win Type - Total 0 Types 0/0/0/0/0/0/0/0/0 Lore% 52 Gallery% 47 Achievement% 42 Wizard Run 0 Options --------- ASCII 1 Keyboard 0 Movement Vi Keybinds 0 Fullscreen 1 Font 18/SmallcapsGlow Map View 76x50 Tactical HUD 1 Map Filters NONE Filters NONE Steam 1 RUN: 70deabbc-7c9d-4a7c-88f5-ea627940db1b